Cogmind - Beta 14 @@@ ROGUE MODE // 2024.08.27 @ 22:13:39 // Winter2019/RPGLIKE Player: Bulbasornado Result: Self-destructed Performance ------------- Evolutions (0) 0 Regions Visited (4) 800 Robots Destroyed (62) 310 Value Destroyed (2167) 2167 Prototype IDs (14) 280 Alien Tech Used (0) 0 Bonus (-325) -325 TOTAL SCORE: 3232 Bonus ------- High Alert Combat Kills 112 Friendly Fire -437 Cogmind --------- Core Integrity 600/600 Matter 246/300 Energy 100/100 System Corruption 3% Temperature Cool (0) Movement Hovering (66) Location -8/Recycling Parts ------- > --- POWER (1) -------- Backup Power I > --- PROPULSION (2) --- Hover Unit Combat Airjet > --- UTILITY (2) ------ Light Armor Plating Improved Light Armor Plating > --- WEAPON (4) ------- Autobeam Heavy Assault Cannon Grenade Launcher > --- INVENTORY (1) ---- Rainbow Chip Peak State ------------ > --- POWER ------------ Backup Power I > --- PROPULSION ------- Hover Unit Combat Airjet > --- UTILITY ---------- Light Armor Plating Improved Light Armor Plating > --- WEAPON ----------- Autobeam Heavy Assault Cannon Grenade Launcher > --- INVENTORY -------- Rainbow Chip [Rating: 21] Favorites ----------- Power Backup Power I Engine Backup Power I Propulsion Combat Airjet Treads Light Treads Hover Unit Combat Airjet Utility Improved Light Armor Plating Device Tractor Beam Processor Transport Network Coupler Hackware Hacking Suite Protection Improved Light Armor Plating Weapon Light Cannon Energy Gun Heavy EM Pulse Gun Ballistic Gun Assault Rifle Ballistic Cannon Light Cannon Launcher Grenade Launcher Build | -11 -10 -10 -10 -8 ------- Run | Yrd Mat Min Sub Rec Slots Evolved 5 | 2 2 . 1 . Power . | . . . . . Propulsion 1 | . 1 . . . Utility 1 | . 1 . . . Weapon 3 | 2 . . 1 . Parts Attached 28 | 8 14 2 4 . Power 1 | 1 . . . . Engine 1 | 1 . . . . Core . | . . . . . Reactor . | . . . . . Propulsion 5 | 2 2 . 1 . Treads 1 | 1 . . . . Leg . | . . . . . Wheel . | . . . . . Hover 4 | 1 2 . 1 . Flight . | . . . . . Utility 7 | 2 3 1 1 . Device 1 | 1 . . . . Storage . | . . . . . Processor 1 | . 1 . . . Hackware 1 | . 1 . . . Protection 4 | 1 1 1 1 . Artifact . | . . . . . Weapon 15 | 3 9 1 2 . Energy Gun 6 | 2 3 . 1 . Energy Cannon . | . . . . . Ballistic Gun 1 | 1 . . . . Ballistic Cannon 6 | . 5 1 . . Launcher 2 | . 1 . 1 . Special Weapon . | . . . . . Impact Weapon . | . . . . . Slashing Weapon . | . . . . . Piercing Weapon . | . . . . . Special Melee Weapon . | . . . . . Unidentified Prototypes . | . . . . . Parts Lost . | . . . . . Power . | . . . . . Propulsion . | . . . . . Utility . | . . . . . Weapon . | . . . . . Highest Loss Streak . | . . . . . To Critical Strikes . | . . . . . Average Slot Usage (%) 94 | . 99 93 87 . Engine 12 | . 12 12 11 . Hover 22 | . 21 25 23 . Hackware 6 | . 9 6 . . Protection 17 | . 13 17 23 . Energy Gun 12 | . 21 . 4 . Ballistic Cannon 16 | . 19 18 11 . Launcher 5 | . . 12 11 . Peak Build Rating 21 | 12 17 20 21 . Average Rating 13 | 5 16 17 19 . On Entrance 13 | . 12 16 18 21 Naked Turns . | . . . . . Heaviest Build 27 | 14 17 22 27 . Greatest Support 28 | 20 23 23 28 . Greatest Overweight (x) 1 | 1 1 . 1 . Average Overweight (x) . | . . . . . Largest Inventory Capacity 1 | . . . 1 . Average Capacity . | . . . . . Most Carried 1 | . . . 1 . Average Carried . | . . . . . Final Capacity 1 | . . . 1 1 Final Carried 1 | . . . 1 1 Class Distribution -------------------- 45% | Gunner 25% | Hacker-Tank 22% | Hacker-Gunner 5% | Scavenger-Gunner Dominant Class ---------------- Hacker-Gunner | -10/Materials Hacker-Gunner | -10/Mines Hacker-Tank | -10/Subcaves Hacker-Tank | -8/Recycling Resources | -11 -10 -10 -10 -8 ----------- Run | Yrd Mat Min Sub Rec Matter Collected 1561 | 289 649 262 361 . Remotely 96 | 96 . . . . Salvage Created 2262 | 191 1726 110 235 . Parts 140 | 7 100 4 29 . Haulers Intercepted 2 | . 2 . . . Recyclers Shooed . | . . . . . Parts Field Recycled . | . . . . . Retrieved Matter . | . . . . . Parts Self-Destructed 12 | . . . 12 . Prevented . | . . . . . Kills | -11 -10 -10 -10 -8 ------- Run | Yrd Mat Min Sub Rec Combat Hostiles Destroyed 53 | 2 37 2 12 . Guns 19 | 2 17 . . . Cannons 29 | . 19 2 8 . AOE 5 | . 1 . 4 . Classes Destroyed 13 | 2 6 2 3 . Worker 1 | . . 1 . . Builder 2 | . 2 . . . Tunneler 1 | . . 1 . . Hauler 2 | . 2 . . . Recycler 3 | 1 2 . . . Operator 1 | . 1 . . . Turret 2 | . . . 2 . Watcher 3 | . 3 . . . Swarmer 11 | . 6 . 5 . Grunt 33 | . 31 2 . . Sentry 1 | . . . 1 . Demolisher 2 | 2 . . . . Subdweller 6 | . . . 6 . Thug 2 | . . 2 . . Best Kill Streak 4 | 2 3 2 4 . Combat Bots Only 3 | 2 3 2 3 . Max Kills in Single Turn 3 | 1 2 1 3 . Gunslinging . | . . . . . Exploded 3 | . 1 . 3 . Melee . | . . . . . Uniques/NPCs Destroyed . | . . . . . Combat | -11 -10 -10 -10 -8 -------- Run | Yrd Mat Min Sub Rec Hostile Shots Fired 80 | 3 59 4 14 . Missed 25 | . 20 1 4 . Damage Taken 776 | 131 414 68 163 . Core 527 | 112 278 48 89 . Absorbed by Shields . | . . . . . Redirected to Core 448 | 67 254 38 89 . Core Remaining (%) 81 | 81 . . . . Volleys Fired 163 | 3 105 25 30 . Largest 3 | 3 3 3 2 . Hottest 135 | 110 135 100 90 . Shots Fired 338 | 9 257 40 32 . Gun 145 | 9 136 . . . Cannon 187 | . 121 37 29 . Launcher 6 | . . 3 3 . Special . | . . . . . Kinetic 190 | 3 121 37 29 . Thermal 3 | 3 . . . . Explosive 6 | . . 3 3 . Electromagnetic 139 | 3 136 . . . Robot Hit Streak 21 | 5 15 21 12 . Robot Miss Streak 4 | . 4 1 2 . Penetration Max . | . . . . . Secondary Targets . | . . . . . Shots Hit Robots 144 | 5 102 23 14 . Core Hits 81 | 5 51 11 14 . Critical Kills 1 | 1 . . . . Critical Parts Destroyed . | . . . . . Critical Strikes 9 | 2 5 1 1 . Burn 1 | 1 . . . . Destroy 1 | 1 . . . . Blast 6 | . 4 1 1 . Corrupt 1 | . 1 . . . Melee Attacks . | . . . . . Impact . | . . . . . Slashing . | . . . . . Piercing . | . . . . . Sneak Attacks . | . . . . . Combat Hostiles . | . . . . . Follow-up Attacks . | . . . . . Damage Inflicted 3378 | 154 1862 566 796 . Guns 956 | 61 895 . . . Cannons 1969 | . 910 500 559 . Explosions 453 | 93 57 66 237 . Melee . | . . . . . Ramming . | . . . . . Kinetic 1983 | 14 910 500 559 . Thermal 162 | 105 57 . . . Explosive 303 | . . 66 237 . Electromagnetic 930 | 35 895 . . . Impact . | . . . . . Slashing . | . . . . . Piercing . | . . . . . Highest Corruption 3 | . 3 3 3 . Average Corruption 2 | . 2 3 3 . Corruption Purged . | . . . . . Corruption Blocked . | . . . . . Effects 52 | . 15 14 23 . Message Errors 9 | . 4 2 3 . Matter Fused 21 | . 3 6 12 . Heat Flow Errors 7 | . 3 1 3 . Energy Discharges 6 | . 2 1 3 . Data Loss (minor) 6 | . 1 3 2 . Data Loss (major) 2 | . 2 . . . Misfires 1 | . . 1 . . Overload Shots . | . . . . . Overflow Damage 75 | 3 7 28 37 . Projectiles 62 | . 7 28 27 . Explosions 13 | 3 . . 10 . Melee . | . . . . . Knockbacks 16 | . 9 7 . . Impact . | . . . . . Kinetic 16 | . 9 7 . . Secondary . | . . . . . Self-Inflicted Damage 27 | . . 27 . . Shots 1 | . . 1 . . Rammed . | . . . . . Targets Rammed . | . . . . . Kicked . | . . . . . Crushed . | . . . . . Highest Temperature 246 | 48 246 13 168 . Average Temperature 48 | 26 51 4 77 . Received Heat Transfer 198 | . 165 24 9 . Siege Activations . | . . . . . Robots Corrupted . | . . . . . Combat Hostiles . | . . . . . Parts Fried . | . . . . . Impact Corruptions . | . . . . . Robots Melted . | . . . . . Combat Hostiles . | . . . . . Parts Melted 1 | . . . 1 . Heat Transferred 311 | 211 100 . . . Parts Sabotaged . | . . . . . Parts Stolen . | . . . . . Parts Stripped . | . . . . . Power Chain Reactions 2 | 1 1 . . . Alert | -11 -10 -10 -10 -8 ------- Run | Yrd Mat Min Sub Rec Peak Influence 684 | 50 684 360 . . Initial 243 | . 32 243 . 9 Average 145 | 1 232 266 . . Maximum Alert Level 2 | . 2 1 . . Low Security (%) 67 | 100 56 4 . . Level 1 23 | . 22 95 . . Level 2 9 | . 20 . . . Level 3 . | . . . . . Level 4 . | . . . . . Level 5 . | . . . . . High Security . | . . . . . Max Security . | . . . . . Squads Dispatched 11 | . 10 1 . . Investigation 11 | . 10 1 . . Extermination . | . . . . . Reinforcement . | . . . . . Assault . | . . . . . Garrison . | . . . . . Intercept . | . . . . . Searches Triggered . | . . . . . Construction Impeded . | . . . . . Haulers Reinforced . | . . . . . Active Scanning Responses . | . . . . . Cargo Convoy Interrupts . | . . . . . Stealth | -11 -10 -10 -10 -8 --------- Run | Yrd Mat Min Sub Rec Distress Signals . | . . . . . Communications Jammed . | . . . . . Distress Signals . | . . . . . Times Spotted 55 | 2 38 2 13 . Peak Tracking Total 4 | 2 3 2 4 . Tactical Retreats 2 | . 1 . 1 . Traps | -11 -10 -10 -10 -8 ------- Run | Yrd Mat Min Sub Rec Traps Triggered 5 | . 4 . 1 . Indirectly . | . . . . . Trap Hack Attempts . | . . . . . Triggered . | . . . . . Disarmed . | . . . . . Reprogrammed . | . . . . . Reused . | . . . . . Traps Extracted . | . . . . . Installed 1 | . . . 1 . Triggered . | . . . . . Machines | -11 -10 -10 -10 -8 ---------- Run | Yrd Mat Min Sub Rec Machines Disabled 35 | . 22 9 4 . Max in Single Turn 3 | . 2 3 3 . Machines Repaired . | . . . . . Machines Dismantled . | . . . . . Machines Sabotaged 5 | . 5 . . . Overloaded Fab Kills . | . . . . . Hacking | -11 -10 -10 -10 -8 --------- Run | Yrd Mat Min Sub Rec Machines Accessed 11 | . 9 1 1 . Terminals 6 | . 6 . . . Fabricators . | . . . . . Repair Stations 1 | . 1 . . . Recycling Units 2 | . 2 . . . Scanalyzers . | . . . . . Garrison Access . | . . . . . Total Hacks 33 | . 31 1 1 . Successful 23 | . 21 1 1 . Failed 9 | . 9 . . . Catastrophic . | . . . . . Database Lockouts 1 | . 1 . . . Manual 18 | . 18 . . . Terminals 26 | . 26 . . . Fabricators . | . . . . . Repair Stations 2 | . 2 . . . Recycling Units 3 | . 3 . . . Scanalyzers . | . . . . . Garrison Access . | . . . . . Terminal Hacks 11 | . 9 1 1 . Prototype ID Bank 2 | . 2 . . . Open Door 1 | . . 1 . . Branch Access Points 1 | . 1 . . . Alert Level 1 | . 1 . . . Unreport Threat 3 | . 3 . . . Locate Traps 2 | . 2 . . . Derelict Proto ID Bank 1 | . . . 1 . Fabricator Hacks . | . . . . . Repair Station Hacks 1 | . 1 . . . Refit 1 | . 1 . . . Recycling Unit Hacks 1 | . 1 . . . Retrieve Components 1 | . 1 . . . Scanalyzer . | . . . . . Garrison Access Hacks . | . . . . . Unauthorized Hacks 10 | . 10 . . . Terminals 7 | . 7 . . . Botnet 1 | . 1 . . . Sabotage 6 | . 6 . . . Fabricators . | . . . . . Repair Stations 1 | . 1 . . . Patch 1 | . 1 . . . Recycling Units 2 | . 2 . . . Tunnel 2 | . 2 . . . Scanalyzers . | . . . . . Garrison Access . | . . . . . Data Cores Recovered 1 | . 1 . . . Used . | . . . . . Hacking Detections 5 | . 5 . . . Full Trace Events . | . . . . . Feedback Events . | . . . . . Feedback Blocked . | . . . . . Robot Schematics Acquired . | . . . . . Robots Built . | . . . . . Authchips . | . . . . . Time . | . . . . . Total Robot Build Rating . | . . . . . Part Schematics Acquired . | . . . . . Parts Built . | . . . . . Authchips . | . . . . . Time . | . . . . . Total Part Build Rating . | . . . . . Parts Repaired . | . . . . . Time . | . . . . . Parts Recycled . | . . . . . Recycled Matter . | . . . . . Retrieved Matter . | . . . . . Retrieved Components 9 | . 9 . . . Parts Scanalyzed . | . . . . . Part Schematics Acquired . | . . . . . Parts Damaged . | . . . . . Bothacking | -11 -10 -10 -10 -8 ------------ Run | Yrd Mat Min Sub Rec Used RIF Installer . | . . . . . Robots Hacked . | . . . . . Non-combat . | . . . . . Combat . | . . . . . Robot Hacks Applied . | . . . . . Relay Couplers Released . | . . . . . Fabnet Peak Effective % . | . . . . . Robots Rewired . | . . . . . Allies Hacked . | . . . . . Hacks Repelled . | . . . . . Allies | -11 -10 -10 -10 -8 -------- Run | Yrd Mat Min Sub Rec Total Allies 3 | . . 3 . . Largest Group 3 | . . 3 3 . Highest-Rated Group 40 | . . 40 40 . Highest-Rated Ally 16 | . . 16 16 . Total Orders . | . . . . . Ally Attacks 12 | . . . 12 . Total Damage 85 | . . . 85 . Kills . | . . . . . Allies Corrupted . | . . . . . Allies Melted . | . . . . . Intel | -11 -10 -10 -10 -8 ------- Run | Yrd Mat Min Sub Rec Robot Analysis Total . | . . . . . Derelict Logs Recovered 4 | . . 2 2 . Drone Launches . | . . . . . Drone Recoveries . | . . . . . Exploration | -11 -10 -10 -10 -8 ------------- Run | Yrd Mat Min Sub Rec Turns Passed 7417 | 2310 2770 740 1597 . Spaces Moved 4208 | 65 1763 949 1431 . Core 16 | 16 . . . . Treads 38 | 38 . . . . Legs . | . . . . . Wheels . | . . . . . Hover 4154 | 11 1763 949 1431 . Flight . | . . . . . Fastest Speed 50 | 50 66 66 66 . Average Speed 74 | 134 82 66 66 . Slowest Speed 160 | 160 150 66 150 . Overloaded Moves . | . . . . . Propulsion Burnouts . | . . . . . Robots Hopped . | . . . . . Cave-ins Triggered . | . . . . . Exploration Rate (%) 58 | 9 99 99 81 2 Regions Visited 4 Branch Regions 3 Pre-discovered Areas 4 | . 2 1 1 . Known Exits Taken 1 | . 1 . . . Unknown Exits Taken 3 | 1 . 1 1 . Scrap Searched 4 | . . 2 2 . Spaces Dug 6 | . . 6 . . Terrain Destroyed 70 | . 26 30 14 . Melee . | . . . . . Projectile 4 | . . . 4 . AOE 66 | . 26 30 10 . Terrain Rammed . | . . . . . Walls Destroyed . | . . . . . Machines Disabled . | . . . . . Actions | -11 -10 -10 -10 -8 --------- Run | Yrd Mat Min Sub Rec Total 8209 | 2277 2877 1022 2033 . Wait 3750 | 2202 960 41 547 . Move 4204 | 64 1762 948 1430 . Hop . | . . . . . Pick Up 3 | . . . 3 . Fast Attach 20 | 6 8 2 4 . Attach . | . . . . . Detach 1 | . . 1 . . Swap 8 | 2 6 . . . Drop 17 | . 10 2 5 . Fire 163 | 3 105 25 30 . Melee . | . . . . . Ram . | . . . . . Kick . | . . . . . Crush . | . . . . . Escape Stasis . | . . . . . Rewire . | . . . . . Trap 1 | . . . 1 . Miscellaneous 42 | . 26 3 13 . Route ------- -11/Scrapyard -10/Materials (discovered 5 exits: [*Mat x3] / *Min x2) -10/Mines (discovered 4 exits: [*Mat x2] / [*Exi] / *Sub) -10/Subcaves (discovered 3 exits: [*Mat x2] / [*Rec]) -8/Recycling History --------- Turn | Location | Event 7 | -11/Scrapyard | Upgraded with Weapon slot (x2) 9 | -11/Scrapyard | Discovered new exit (range 15) 2277 | -11/Scrapyard | Assembled infested the area 2311 | -11/Scrapyard | Entered Materials 2320 | -10/Materials | Build established: Gunner 2625 | -10/Materials | Discovered new exit (range 4) 2888 | -10/Materials | Reached level 2 2986 | -10/Materials | Upgraded with Utility slot (x1) 3327 | -10/Materials | Discovered new exit (range 8) 3372 | -10/Materials | Upgraded with Propulsion slot (x1) 3649 | -10/Materials | Discovered new exit (range 13) 3683 | -10/Materials | Build established: Scavenger-Gunner 3810 | -10/Materials | Reached level 3 4115 | -10/Materials | Build established: Hacker-Gunner 4162 | -10/Materials | Discovered new exit (range 16) 4199 | -10/Materials | Discovered new exit (range 8) 4373 | -10/Materials | Core integrity fell below 50% 4485 | -10/Materials | Reached level 4 4521 | -10/Materials | Central database locked down 4725 | -10/Materials | Reached level 5 4901 | -10/Materials | Identified exit to Mines 5009 | -10/Materials | Reached level 6 5081 | -10/Materials | Entered Mines 5100 | -10/Mines | Met a Derelict bent on vengeance 5116 | -10/Mines | Discovered new exit (range 10) 5191 | -10/Mines | Learned location of Zion (-6) 5204 | -10/Mines | Deemed a non-threat by the Exiles lab entrance 5205 | -10/Mines | Discovered new exit (range 5) 5232 | -10/Mines | Found a hidden stash of uninstalled traps 5360 | -10/Mines | Discovered new exit (range 12) 5452 | -10/Mines | Met a Derelict shopkeep closing up shop 5544 | -10/Mines | Assisted by bots powering up and referring to "LRC-V3" 5783 | -10/Mines | Discovered new exit (range 4) 5788 | -10/Mines | Build established: Hacker-Tank 5821 | -10/Mines | Entered Subcaves 5821 | -10/Subcaves | Accompanied by 3 allies 5857 | -10/Subcaves | Shifting Twisted Machinery released Sub. Power Source 5890 | -10/Subcaves | Learned location of 2 exits from Materials 5891 | -10/Subcaves | Discovered new exit (range 14) 6097 | -10/Subcaves | Visited 4L-MR0's lab 6105 | -10/Subcaves | Found Rainbow Chip 6169 | -10/Subcaves | Shifting Twisted Machinery released Sub. Power Source 6169 | -10/Subcaves | Shifting Twisted Machinery released Sub. Power Source 6250 | -10/Subcaves | Shifting Twisted Machinery released Scrap Shield 6253 | -10/Subcaves | Shifting Twisted Machinery released Piercing Trap 6639 | -10/Subcaves | Shifting Twisted Machinery released Flamer 6718 | -10/Subcaves | Discovered new exit (range 9) 6761 | -10/Subcaves | Reached level 7 6765 | -10/Subcaves | Discovered new exit (range 10) 6772 | -10/Subcaves | Upgraded with Weapon slot (x1) 7418 | -10/Subcaves | Entered Recycling 7418 | -8/Recycling | Self-destructed Last Messages --------------- 06819_ Trooper 1b destroyed. 06824_ Used Protomatter to restore core integrity (+53) 06825_ Dropped Hover Unit. 06826_ Dropped Lgt. Armor Plating. 06826_ Dropped Grenade Launcher. 06827_ System corrupted: Matter fused (-9). 06829_ Used Protomatter to restore part integrity (+60) 06831_ Acquired Grenade Launcher. 06837_ Acquired Lgt. Armor Plating. 06840_ Acquired Hover Unit. 06842_ Used Protomatter to restore part integrity (+4, depleted) 06928_ System corrupted: Matter fused (-5). 06989_ System corrupted: Heat flow error (+151). 07083_ System corrupted: Energy discharge (-23). 07180_ System corrupted: Heat flow error (+131). 07244_ System corrupted: Heat flow error (+213). 07265_ Subatomizers dissect the Sub. Beam Cannon. 07399_ System corrupted: Matter fused (-10). LOCATION=UNKNOWN GOAL=ESCAPE Map ----- +----------------------------------------------------+ | ?????????????????????????????? | | ?????????????????????????????? | | ?????????????????????????????? | | ?????????????????????????????? | | ?????????????????????????????? | | ?????????????????????????????? | | ?????????????????????????????? | | ?????????????????????????????? | | ?????????????????????????????? | | ?????????????????????????????? | | ???? ??????????????????????? | | ???? ??????????????????????? | | ???? ??????????????????????? | | ???# #?????????????????????? | | ???# #?????????????????????? | | ???# #?????????????????????? | | ???# #?????????????????????? | | ???# #?????????????????????? | | ???# #?????????????????????? | | ???# ###???????????????????? | | ???# !!#???????????????????? | | ???Y !!????????????????????? | | ???# !?????????????????????? | | ???# #?????????????????????? | | ???# #?????????????????????? | | ???# @ #?????????????????????? | | ???# #?????????????????????? | | ???#####?????????????????????? | | ?????????????????????????????? | | ?????????????????????????????? | | ?????????????????????????????? | | ?????????????????????????????? | | ?????????????????????????????? | | ?????????????????????????????? | | ?????????????????????????????? | | ?????????????????????????????? | | ?????????????????????????????? | | ?????????????????????????????? | | ?????????????????????????????? | | ?????????????????????????????? | | | | | | | | | | | | | | | | | | | | | +----------------------------------------------------+ Best States ------------- Heat Dissipation 37 Energy Generation 10 Energy Capacity 250 Matter Stores 300 Matter Capacity 300 Sight Range 16 Terrain Scan Density 10 Armor Coverage 300 Evasion (%) 51 Recoil Reduction 1 Offensive Hacking 30 Defensive Hacking 10 Item Schematics ----------------- None Robot Schematics ------------------ None Fabricated ------------ Nothing Alien Tech Used ----------------- None Achievements -------------- None Challenges ------------ None RPGLIKE | -11 -10 -10 -10 -8 --------- Run | Yrd Mat Min Sub Rec Levels Raised 6 | . 5 . 1 . XP Earned 12070 | 3250 7260 652 908 . XP Spent 11070 | 2920 5300 . 2850 . Upgrades 22 | 7 11 . 4 . Propulsion Slot 1 | . 1 . . . Utility Slot 1 | . 1 . . . Weapon Slot 3 | 2 . . 1 . Heat Dissipation 2 | 2 . . . . Mass Support 2 | . 1 . 1 . Inventory Capacity 1 | . . . 1 . Ranged Accuracy 6 | 3 2 . 1 . Hack Attack % 4 | . 4 . . . Hack Defense % 2 | . 2 . . . Protomatter Created 483 | . 301 69 113 . Integrity Restored 797 | . 509 68 220 . Core 527 | . 390 48 89 . Parts 270 | . 119 20 131 . Protomatter Decayed 114 | . 17 20 77 . Game ------ Seed AntigravColdScrapsphere Manual? 0 Play Time 00:44:03 Cumulative 202.4 hours Start 2024.08.27 @ 21:18:51 End 2024.08.27 @ 22:13:39 Sessions 1 Manual Loads 0 Difficulty Rogue Special Mode Winter2019/RPGLIKE Game No. 70 Rogue 63 Adventurer 7 Explorer 0 Win Type - Total 5 Types 3/0/1/1/0/0/0/0/0 Lore% 58 Gallery% 70 Achievement% 59 Wizard Run 0 Options --------- Layout 0 ASCII 0 Keyboard 1 Movement Vi Keybinds 0 Fullscreen 2 Font 18/Smallcaps Map View 76x50 Zoom Use 0% Tactical HUD 1 Map Filters NONE Filters NONE Steam 1 RUN: a273b258-0117-4c5d-9017-fca34a96a95a